[Event "*** Titled Tuesday Blitz"]
[Site "Chess.com"]
[Date "2021.03.09"]
[Round "11"]
[White "floplover"]
[Black "jannat65"]
[Result "1-0"]
[WhiteElo "2309"]
[BlackElo "1990"]
[TimeControl "180+1"]
[EndTime "12:11:23 PST"]
[Termination "floplover won by checkmate"]

1. d4 {[%clk 0:02:53.9]} 1... d5 {[%clk 0:02:58.6]} 2. Nf3 {[%clk 0:02:53.4]}
2... c6 {[%clk 0:02:56.6]} 3. Bf4 {[%clk 0:02:49.6]} 3... Nf6 {[%clk 0:02:55.6]}
4. e3 {[%clk 0:02:49.4]} 4... Bg4 {[%clk 0:02:54.8]} 5. Nbd2 {[%clk 0:02:47.7]}
5... e6 {[%clk 0:02:54.7]} 6. c3 {[%clk 0:02:47.5]} 6... Nbd7 {[%clk 0:02:54.4]}
7. Be2 {[%clk 0:02:47]} 7... Be7 {[%clk 0:02:53.5]} 8. h3 {[%clk 0:02:46.9]}
8... Bxf3 {[%clk 0:02:49.4]} 9. Bxf3 {[%clk 0:02:47.8]} 9... O-O {[%clk
0:02:47.3]} 10. O-O {[%clk 0:02:47.1]} 10... c5 {[%clk 0:02:41.1]} 11. Re1
{[%clk 0:02:35.7]} 11... c4 {[%clk 0:02:39.5]} 12. e4 {[%clk 0:02:33.3]} 12...
dxe4 {[%clk 0:02:32.8]} 13. Nxe4 {[%clk 0:02:34.2]} 13... Nd5 {[%clk 0:02:30]}
14. Bg3 {[%clk 0:02:24.7]} 14... N7f6 {[%clk 0:02:21.8]} 15. Qe2 {[%clk
0:02:14]} 15... Rc8 {[%clk 0:02:10.1]} 16. Be5 {[%clk 0:02:01.6]} 16... Nd7
{[%clk 0:02:05.7]} 17. Bg3 {[%clk 0:01:50]} 17... N7b6 {[%clk 0:02:00]} 18. Qc2
{[%clk 0:01:43.5]} 18... Qd7 {[%clk 0:01:50.4]} 19. h4 {[%clk 0:01:42.2]} 19...
Qa4 {[%clk 0:01:40.1]} 20. Qb1 {[%clk 0:01:40.5]} 20... Qd7 {[%clk 0:01:35.8]}
21. h5 {[%clk 0:01:30.2]} 21... h6 {[%clk 0:01:32.9]} 22. Be5 {[%clk 0:01:26.4]}
22... Na4 {[%clk 0:01:27]} 23. Qc2 {[%clk 0:01:23.1]} 23... b5 {[%clk
0:01:24.5]} 24. g3 {[%clk 0:01:06.4]} 24... f6 {[%clk 0:01:21.2]} 25. Bf4 {[%clk
0:01:04]} 25... Nxf4 {[%clk 0:01:15.3]} 26. gxf4 {[%clk 0:01:04.9]} 26... f5
{[%clk 0:01:11.6]} 27. Nd2 {[%clk 0:00:58.9]} 27... Bd6 {[%clk 0:01:09.5]} 28.
Re2 {[%clk 0:00:48.6]} 28... Bxf4 {[%clk 0:01:07]} 29. Rae1 {[%clk 0:00:49.2]}
29... Rf6 {[%clk 0:01:03.1]} 30. Bg2 {[%clk 0:00:46.8]} 30... Qf7 {[%clk
0:00:58.7]} 31. Bf3 {[%clk 0:00:40.4]} 31... g6 {[%clk 0:00:52.8]} 32. Bg2
{[%clk 0:00:35.4]} 32... g5 {[%clk 0:00:48]} 33. Nf3 {[%clk 0:00:35.7]} 33...
Nb6 {[%clk 0:00:38.7]} 34. Ne5 {[%clk 0:00:34.2]} 34... Qxh5 {[%clk 0:00:34.2]}
35. Nc6 {[%clk 0:00:24.4]} 35... Rxc6 {[%clk 0:00:30.8]} 36. Bxc6 {[%clk
0:00:23.6]} 36... e5 {[%clk 0:00:28.9]} 37. Bg2 {[%clk 0:00:20.8]} 37... e4
{[%clk 0:00:21.9]} 38. Rxe4 {[%clk 0:00:20.9]} 38... Bh2+ {[%clk 0:00:17.6]} 39.
Kf1 {[%clk 0:00:20.4]} 39... fxe4 {[%clk 0:00:16.8]} 40. Qxe4 {[%clk 0:00:21.3]}
40... Kg7 {[%clk 0:00:13.8]} 41. Qb7+ {[%clk 0:00:18.6]} 41... Qf7 {[%clk
0:00:13.8]} 42. Re7 {[%clk 0:00:18.4]} 42... Rxf2+ {[%clk 0:00:11.2]} 43. Ke1
{[%clk 0:00:18.6]} 43... Bg3 {[%clk 0:00:06.2]} 44. Kd1 {[%clk 0:00:16.8]} 44...
Rf6 {[%clk 0:00:04.9]} 45. Rxf7+ {[%clk 0:00:16.7]} 45... Rxf7 {[%clk
0:00:05.8]} 46. Qe4 {[%clk 0:00:16.1]} 46... Kf6 {[%clk 0:00:04.7]} 47. Bh3
{[%clk 0:00:16.1]} 47... Re7 {[%clk 0:00:04.9]} 48. Qf5+ {[%clk 0:00:14.1]}
48... Kg7 {[%clk 0:00:05.4]} 49. Bg4 {[%clk 0:00:11.6]} 49... Re1+ {[%clk
0:00:05.8]} 50. Kc2 {[%clk 0:00:11.6]} 50... Re7 {[%clk 0:00:06.1]} 51. Bh5
{[%clk 0:00:11.5]} 51... Nd7 {[%clk 0:00:03.8]} 52. Qg6+ {[%clk 0:00:11.2]}
52... Kh8 {[%clk 0:00:03.2]} 53. Qxh6+ {[%clk 0:00:11]} 53... Rh7 {[%clk
0:00:03.5]} 54. Qxg5 {[%clk 0:00:11.1]} 54... Rg7 {[%clk 0:00:03.1]} 55. Qd8+
{[%clk 0:00:09.5]} 55... Rg8 {[%clk 0:00:02.5]} 56. Qxd7 {[%clk 0:00:09]} 56...
Bf4 {[%clk 0:00:02.9]} 57. Bf3 {[%clk 0:00:06.4]} 57... Rg3 {[%clk 0:00:02.6]}
58. Be4 {[%clk 0:00:06]} 58... Rg7 {[%clk 0:00:01.7]} 59. Qe8+ {[%clk
0:00:05.1]} 59... Rg8 {[%clk 0:00:02.2]} 60. Qh5+ {[%clk 0:00:04.9]} 60... Kg7
{[%clk 0:00:01.3]} 61. Qg4+ {[%clk 0:00:05.2]} 61... Kf8 {[%clk 0:00:02.2]} 62.
Qxf4+ {[%clk 0:00:05.8]} 62... Ke7 {[%clk 0:00:02.7]} 63. Qe5+ {[%clk
0:00:05.8]} 63... Kd8 {[%clk 0:00:03.2]} 64. Qd5+ {[%clk 0:00:05.9]} 64... Kc7
{[%clk 0:00:03]} 65. Qxg8 {[%clk 0:00:06.8]} 65... Kb6 {[%clk 0:00:03.7]} 66.
Qg7 {[%clk 0:00:07.4]} 66... Ka5 {[%clk 0:00:04.6]} 67. Qxa7# {[%clk 0:00:07]}
1-0

[Event "*** Titled Tuesday Blitz"]
[Site "Chess.com"]
[Date "2021.03.09"]
[Round "11"]
[White "MerryPoppies"]
[Black "stepakyedael"]
[Result "1-0"]
[WhiteElo "2202"]
[BlackElo "2272"]
[TimeControl "180+1"]
[EndTime "12:11:42 PST"]
[Termination "MerryPoppies won by checkmate"]

1. d4 {[%clk 0:03:00.9]} 1... Nf6 {[%clk 0:02:59.8]} 2. c4 {[%clk 0:03:01.8]}
2... g6 {[%clk 0:02:59.5]} 3. Nc3 {[%clk 0:03:02.7]} 3... Bg7 {[%clk 0:02:59.6]}
4. Nf3 {[%clk 0:03:03.6]} 4... d6 {[%clk 0:02:59.4]} 5. e4 {[%clk 0:03:04.5]}
5... O-O {[%clk 0:02:59.2]} 6. h3 {[%clk 0:03:03.6]} 6... Na6 {[%clk 0:02:58.2]}
7. Be2 {[%clk 0:03:02.9]} 7... e5 {[%clk 0:02:58.1]} 8. d5 {[%clk 0:03:02.4]}
8... h6 {[%clk 0:02:57.9]} 9. O-O {[%clk 0:03:01.7]} 9... Ne8 {[%clk 0:02:57.6]}
10. g4 {[%clk 0:02:43.8]} 10... f5 {[%clk 0:02:56.8]} 11. gxf5 {[%clk
0:02:31.7]} 11... gxf5 {[%clk 0:02:56.7]} 12. exf5 {[%clk 0:02:31.7]} 12... Bxf5
{[%clk 0:02:55.7]} 13. Kh1 {[%clk 0:01:32]} 13... Bxh3 {[%clk 0:02:42.5]} 14.
Rg1 {[%clk 0:01:31.8]} 14... Kh8 {[%clk 0:02:24.2]} 15. Rg3 {[%clk 0:01:28.8]}
15... Bf5 {[%clk 0:02:22.5]} 16. Qg1 {[%clk 0:01:24.6]} 16... Qf6 {[%clk
0:02:15.3]} 17. Be3 {[%clk 0:01:08.5]} 17... Nb4 {[%clk 0:02:08.8]} 18. Qh2
{[%clk 0:01:00.9]} 18... Nc2 {[%clk 0:02:01.7]} 19. Rag1 {[%clk 0:00:57.4]}
19... Nxe3 {[%clk 0:02:01.2]} 20. fxe3 {[%clk 0:00:58.3]} 20... Rf7 {[%clk
0:01:50]} 21. Nh4 {[%clk 0:00:33]} 21... Bh7 {[%clk 0:01:37]} 22. Bg4 {[%clk
0:00:26.7]} 22... e4 {[%clk 0:01:27.7]} 23. Be6 {[%clk 0:00:24.8]} 23... Re7
{[%clk 0:01:25.6]} 24. Ng6+ {[%clk 0:00:20.1]} 24... Bxg6 {[%clk 0:01:22.7]} 25.
Rxg6 {[%clk 0:00:20.1]} 25... Qf3+ {[%clk 0:01:16.7]} 26. Qg2 {[%clk 0:00:20.3]}
26... Qxg2+ {[%clk 0:01:16.1]} 27. R1xg2 {[%clk 0:00:20.4]} 27... Nf6 {[%clk
0:01:09.9]} 28. Rh2 {[%clk 0:00:19.3]} 28... a6 {[%clk 0:01:04]} 29. Bf5 {[%clk
0:00:19]} 29... Re5 {[%clk 0:01:00.9]} 30. Be6 {[%clk 0:00:17]} 30... Rh5 {[%clk
0:00:55.1]} 31. Rxh5 {[%clk 0:00:15.9]} 31... Nxh5 {[%clk 0:00:55.1]} 32. Nxe4
{[%clk 0:00:15.2]} 32... Rf8 {[%clk 0:00:54.7]} 33. Kg2 {[%clk 0:00:14.1]} 33...
b5 {[%clk 0:00:50.7]} 34. b3 {[%clk 0:00:13.9]} 34... bxc4 {[%clk 0:00:50.1]}
35. bxc4 {[%clk 0:00:14.8]} 35... Rb8 {[%clk 0:00:49.9]} 36. Kf3 {[%clk
0:00:13.9]} 36... Rf8+ {[%clk 0:00:49.6]} 37. Kg4 {[%clk 0:00:13.3]} 37... Nf6+
{[%clk 0:00:49.3]} 38. Nxf6 {[%clk 0:00:13.2]} 38... Rxf6 {[%clk 0:00:48.6]} 39.
Rxf6 {[%clk 0:00:13.4]} 39... Bxf6 {[%clk 0:00:48.8]} 40. Kf5 {[%clk 0:00:13.9]}
40... Kg7 {[%clk 0:00:49.1]} 41. e4 {[%clk 0:00:13.2]} 41... h5 {[%clk
0:00:47.4]} 42. Bd7 {[%clk 0:00:13.2]} 42... h4 {[%clk 0:00:41.9]} 43. Kg4
{[%clk 0:00:12]} 43... a5 {[%clk 0:00:41.9]} 44. Ba4 {[%clk 0:00:11.6]} 44...
Kg6 {[%clk 0:00:40.7]} 45. Bd7 {[%clk 0:00:11.6]} 45... Kf7 {[%clk 0:00:39.4]}
46. Be6+ {[%clk 0:00:11.8]} 46... Ke7 {[%clk 0:00:38.6]} 47. Bc8 {[%clk
0:00:11.1]} 47... Kd8 {[%clk 0:00:37.8]} 48. Be6 {[%clk 0:00:06.9]} 48... a4
{[%clk 0:00:35.9]} 49. Kf3 {[%clk 0:00:05.9]} 49... a3 {[%clk 0:00:34.9]} 50.
Ke3 {[%clk 0:00:05.7]} 50... Ke7 {[%clk 0:00:34.8]} 51. Kd3 {[%clk 0:00:06.1]}
51... c6 {[%clk 0:00:34.8]} 52. Kc2 {[%clk 0:00:03.7]} 52... cxd5 {[%clk
0:00:32.5]} 53. cxd5 {[%clk 0:00:03.2]} 53... Bb2 {[%clk 0:00:31.8]} 54. Kb3
{[%clk 0:00:03.2]} 54... Kf6 {[%clk 0:00:31.8]} 55. Kc4 {[%clk 0:00:03]} 55...
Ke5 {[%clk 0:00:31.7]} 56. Kd3 {[%clk 0:00:02.8]} 56... Bd4 {[%clk 0:00:29.1]}
57. Bf5 {[%clk 0:00:02.4]} 57... Bc5 {[%clk 0:00:27.9]} 58. Ke2 {[%clk
0:00:02.5]} 58... Kd4 {[%clk 0:00:26]} 59. Kd2 {[%clk 0:00:02.8]} 59... Bb4+
{[%clk 0:00:25.1]} 60. Kc2 {[%clk 0:00:03.2]} 60... Bc5 {[%clk 0:00:25.1]} 61.
Kb3 {[%clk 0:00:03.4]} 61... Ke3 {[%clk 0:00:25.1]} 62. Kc4 {[%clk 0:00:03.6]}
62... Kf4 {[%clk 0:00:24.9]} 63. Kb5 {[%clk 0:00:02]} 63... Ke5 {[%clk
0:00:22.2]} 64. Kc4 {[%clk 0:00:02.1]} 64... Kf4 {[%clk 0:00:22.1]} 65. Kb5
{[%clk 0:00:02.4]} 65... Kg3 {[%clk 0:00:22.1]} 66. Kc6 {[%clk 0:00:02.6]} 66...
h3 {[%clk 0:00:21.7]} 67. Bxh3 {[%clk 0:00:02.8]} 67... Kxh3 {[%clk 0:00:21.7]}
68. e5 {[%clk 0:00:03.7]} 68... dxe5 {[%clk 0:00:20.5]} 69. Kxc5 {[%clk
0:00:03.6]} 69... Kg4 {[%clk 0:00:20.3]} 70. d6 {[%clk 0:00:03.3]} 70... e4
{[%clk 0:00:20.5]} 71. d7 {[%clk 0:00:03.5]} 71... e3 {[%clk 0:00:20.9]} 72.
d8=Q {[%clk 0:00:03.8]} 72... e2 {[%clk 0:00:21.1]} 73. Qd2 {[%clk 0:00:04.1]}
73... Kf3 {[%clk 0:00:21]} 74. Qe1 {[%clk 0:00:04.5]} 74... Ke3 {[%clk
0:00:21.2]} 75. Kb4 {[%clk 0:00:04.9]} 75... Kd3 {[%clk 0:00:21.2]} 76. Kxa3
{[%clk 0:00:05.8]} 76... Ke3 {[%clk 0:00:20.9]} 77. Kb3 {[%clk 0:00:06.1]} 77...
Kd3 {[%clk 0:00:21.2]} 78. a4 {[%clk 0:00:07]} 78... Ke3 {[%clk 0:00:21.4]} 79.
a5 {[%clk 0:00:07.9]} 79... Kd3 {[%clk 0:00:22]} 80. a6 {[%clk 0:00:08.8]} 80...
Ke3 {[%clk 0:00:22.7]} 81. a7 {[%clk 0:00:09.7]} 81... Kd3 {[%clk 0:00:23.6]}
82. a8=Q {[%clk 0:00:10.6]} 82... Ke3 {[%clk 0:00:24.3]} 83. Qe8+ {[%clk
0:00:09.6]} 83... Kd3 {[%clk 0:00:25.2]} 84. Q8xe2+ {[%clk 0:00:09.2]} 84... Kd4
{[%clk 0:00:25.4]} 85. Q1d1+ {[%clk 0:00:09]} 85... Kc5 {[%clk 0:00:25.2]} 86.
Qc4+ {[%clk 0:00:09.3]} 86... Kb6 {[%clk 0:00:25]} 87. Qd6+ {[%clk 0:00:09.5]}
87... Kb7 {[%clk 0:00:25.5]} 88. Qdc7+ {[%clk 0:00:09.4]} 88... Ka8 {[%clk
0:00:24.4]} 89. Qa6# {[%clk 0:00:09.5]} 1-0

[Event "*** Titled Tuesday Blitz"]
[Site "Chess.com"]
[Date "2021.03.09"]
[Round "11"]
[White "ViktoriyaTarasova"]
[Black "Savagelittlemole"]
[Result "1-0"]
[WhiteElo "2358"]
[BlackElo "2509"]
[TimeControl "180+1"]
[EndTime "12:12:02 PST"]
[Termination "ViktoriyaTarasova won by checkmate"]

1. d4 {[%clk 0:03:00.9]} 1... Nf6 {[%clk 0:02:59.4]} 2. c4 {[%clk 0:03:00.8]}
2... c5 {[%clk 0:02:58.4]} 3. d5 {[%clk 0:03:00.4]} 3... e6 {[%clk 0:02:58.4]}
4. Nc3 {[%clk 0:02:59.2]} 4... exd5 {[%clk 0:02:56.9]} 5. cxd5 {[%clk
0:02:59.7]} 5... d6 {[%clk 0:02:57.6]} 6. Nf3 {[%clk 0:02:59.8]} 6... g6 {[%clk
0:02:57.9]} 7. Bf4 {[%clk 0:02:59.7]} 7... a6 {[%clk 0:02:57.7]} 8. a4 {[%clk
0:02:59.3]} 8... Bg7 {[%clk 0:02:57.9]} 9. h3 {[%clk 0:02:59.7]} 9... O-O {[%clk
0:02:58.3]} 10. e3 {[%clk 0:03:00.2]} 10... Qe7 {[%clk 0:02:58.8]} 11. Nd2
{[%clk 0:02:59]} 11... Nbd7 {[%clk 0:02:58.9]} 12. Be2 {[%clk 0:02:58.5]} 12...
Ne8 {[%clk 0:02:59.1]} 13. O-O {[%clk 0:02:58]} 13... Ne5 {[%clk 0:02:59.4]} 14.
Re1 {[%clk 0:02:57.6]} 14... f5 {[%clk 0:02:59.3]} 15. Qc2 {[%clk 0:02:56.9]}
15... g5 {[%clk 0:02:57.7]} 16. Bh2 {[%clk 0:02:56.3]} 16... Nf6 {[%clk
0:02:39.1]} 17. Bf1 {[%clk 0:02:55.4]} 17... Qf7 {[%clk 0:02:31.5]} 18. f4
{[%clk 0:02:49.4]} 18... gxf4 {[%clk 0:02:18.8]} 19. exf4 {[%clk 0:02:49.3]}
19... Ng6 {[%clk 0:02:16.2]} 20. Nc4 {[%clk 0:02:48.8]} 20... Qc7 {[%clk
0:02:10.1]} 21. Be2 {[%clk 0:02:21.3]} 21... Bd7 {[%clk 0:02:06.3]} 22. a5
{[%clk 0:02:19.4]} 22... Rae8 {[%clk 0:02:05.9]} 23. Bf3 {[%clk 0:02:19]} 23...
Bb5 {[%clk 0:02:02]} 24. Ne3 {[%clk 0:01:54.6]} 24... Nh4 {[%clk 0:01:46.8]} 25.
Nxf5 {[%clk 0:01:48.8]} 25... Nxf5 {[%clk 0:01:28.8]} 26. Qxf5 {[%clk
0:01:47.1]} 26... Ne4 {[%clk 0:01:20.6]} 27. Nxb5 {[%clk 0:00:49.8]} 27... axb5
{[%clk 0:01:21.5]} 28. Bxe4 {[%clk 0:00:35]} 28... Rxf5 {[%clk 0:01:20.5]} 29.
Bxf5 {[%clk 0:00:35.6]} 29... Rxe1+ {[%clk 0:01:17.2]} 30. Rxe1 {[%clk
0:00:34.7]} 30... Bxb2 {[%clk 0:01:07.6]} 31. Be6+ {[%clk 0:00:19.5]} 31... Kg7
{[%clk 0:01:04.5]} 32. f5 {[%clk 0:00:20.2]} 32... Qxa5 {[%clk 0:00:59.6]} 33.
Rf1 {[%clk 0:00:19.4]} 33... Qc7 {[%clk 0:00:44.6]} 34. Bf4 {[%clk 0:00:18.1]}
34... Bf6 {[%clk 0:00:35.8]} 35. g4 {[%clk 0:00:17.6]} 35... h6 {[%clk
0:00:31.1]} 36. Bg3 {[%clk 0:00:15.2]} 36... c4 {[%clk 0:00:30.1]} 37. h4 {[%clk
0:00:15.3]} 37... Qc5+ {[%clk 0:00:25.4]} 38. Kg2 {[%clk 0:00:14.7]} 38... Qd4
{[%clk 0:00:21.1]} 39. Bxd6 {[%clk 0:00:11.3]} 39... Qxg4+ {[%clk 0:00:20.6]}
40. Kf2 {[%clk 0:00:10.4]} 40... Bxh4+ {[%clk 0:00:20.3]} 41. Ke3 {[%clk
0:00:11.1]} 41... Bg5+ {[%clk 0:00:19.8]} 42. Kf2 {[%clk 0:00:10.9]} 42... c3
{[%clk 0:00:16.9]} 43. f6+ {[%clk 0:00:09]} 43... Bxf6 {[%clk 0:00:16.4]} 44.
Bxg4 {[%clk 0:00:09.3]} 44... c2 {[%clk 0:00:15.8]} 45. Be2 {[%clk 0:00:08.5]}
45... b4 {[%clk 0:00:15.7]} 46. Bc4 {[%clk 0:00:08.6]} 46... Bg5 {[%clk
0:00:15]} 47. Bxb4 {[%clk 0:00:07.5]} 47... c1=Q {[%clk 0:00:15.1]} 48. Rxc1
{[%clk 0:00:08]} 48... Bxc1 {[%clk 0:00:15.8]} 49. d6 {[%clk 0:00:08.1]} 49...
Bg5 {[%clk 0:00:15.1]} 50. Kf3 {[%clk 0:00:08.2]} 50... Kf8 {[%clk 0:00:14.5]}
51. Kg4 {[%clk 0:00:08.7]} 51... Ke8 {[%clk 0:00:14.4]} 52. Kf5 {[%clk
0:00:09.1]} 52... Kd7 {[%clk 0:00:14.6]} 53. Bb5+ {[%clk 0:00:09.4]} 53... Kd8
{[%clk 0:00:15]} 54. Ke6 {[%clk 0:00:09.8]} 54... b6 {[%clk 0:00:13.2]} 55. Bc3
{[%clk 0:00:09.2]} 55... h5 {[%clk 0:00:11.2]} 56. Bd4 {[%clk 0:00:09.4]} 56...
h4 {[%clk 0:00:08.9]} 57. Bxb6+ {[%clk 0:00:09.7]} 57... Kc8 {[%clk 0:00:09.5]}
58. Ba6+ {[%clk 0:00:09.1]} 58... Kb8 {[%clk 0:00:09]} 59. Kd7 {[%clk
0:00:08.5]} 59... h3 {[%clk 0:00:08.7]} 60. Bg1 {[%clk 0:00:05.8]} 60... Be3
{[%clk 0:00:07.5]} 61. Bh2 {[%clk 0:00:04.7]} 61... Bg5 {[%clk 0:00:07.6]} 62.
Kc6 {[%clk 0:00:04.6]} 62... Ka7 {[%clk 0:00:07]} 63. Bf1 {[%clk 0:00:03.5]}
63... Kb8 {[%clk 0:00:07]} 64. Bxh3 {[%clk 0:00:04]} 64... Ka7 {[%clk
0:00:06.4]} 65. d7 {[%clk 0:00:04.5]} 65... Ka8 {[%clk 0:00:06]} 66. Bc7 {[%clk
0:00:05]} 66... Ka7 {[%clk 0:00:05.4]} 67. Be6 {[%clk 0:00:05.5]} 67... Ka6
{[%clk 0:00:05.2]} 68. Bd5 {[%clk 0:00:05.8]} 68... Ka7 {[%clk 0:00:04.3]} 69.
Bc4 {[%clk 0:00:06.4]} 69... Ka8 {[%clk 0:00:04.2]} 70. Bd6 {[%clk 0:00:07]}
70... Ka7 {[%clk 0:00:04.1]} 71. Bd5 {[%clk 0:00:07.4]} 71... Ka8 {[%clk
0:00:04.3]} 72. Bc5 {[%clk 0:00:08]} 72... Kb8 {[%clk 0:00:04.3]} 73. Bb6 {[%clk
0:00:08.4]} 73... Be7 {[%clk 0:00:03.7]} 74. Bc7+ {[%clk 0:00:08.8]} 74... Ka7
{[%clk 0:00:03.7]} 75. Bd6 {[%clk 0:00:08.9]} 75... Bd8 {[%clk 0:00:03.5]} 76.
Bc7 {[%clk 0:00:09.4]} 76... Bh4 {[%clk 0:00:04.2]} 77. d8=Q {[%clk 0:00:09.4]}
77... Bxd8 {[%clk 0:00:03.6]} 78. Bxd8 {[%clk 0:00:10.1]} 78... Kb8 {[%clk
0:00:04.5]} 79. Be6 {[%clk 0:00:09.1]} 79... Ka7 {[%clk 0:00:04.8]} 80. Bb6+
{[%clk 0:00:08.9]} 80... Kb8 {[%clk 0:00:05.7]} 81. Bc7+ {[%clk 0:00:08.9]}
81... Ka7 {[%clk 0:00:06.2]} 82. Bd7 {[%clk 0:00:08.8]} 82... Ka8 {[%clk
0:00:06.2]} 83. Bd6 {[%clk 0:00:08.7]} 83... Ka7 {[%clk 0:00:07.1]} 84. Bc5+
{[%clk 0:00:09.1]} 84... Kb8 {[%clk 0:00:07.8]} 85. Bd4 {[%clk 0:00:08.9]} 85...
Ka8 {[%clk 0:00:07.2]} 86. Be5 {[%clk 0:00:09.4]} 86... Ka7 {[%clk 0:00:07.4]}
87. Bc8 {[%clk 0:00:09.5]} 87... Ka8 {[%clk 0:00:07.5]} 88. Kc7 {[%clk
0:00:09.5]} 88... Ka7 {[%clk 0:00:07.8]} 89. Bd4+ {[%clk 0:00:09.4]} 89... Ka8
{[%clk 0:00:07.8]} 90. Bb7# {[%clk 0:00:09.8]} 1-0

[Event "*** Titled Tuesday Blitz"]
[Site "Chess.com"]
[Date "2021.03.09"]
[Round "11"]
[White "DrCeltic"]
[Black "chessmachine14"]
[Result "1/2-1/2"]
[WhiteElo "2474"]
[BlackElo "2347"]
[TimeControl "180+1"]
[EndTime "12:12:23 PST"]
[Termination "Game drawn by agreement"]

1. e4 {[%clk 0:03:00.9]} 1... c5 {[%clk 0:02:58.8]} 2. Nf3 {[%clk 0:02:58.6]}
2... e6 {[%clk 0:02:58.7]} 3. d4 {[%clk 0:02:58.7]} 3... cxd4 {[%clk 0:02:58.9]}
4. Nxd4 {[%clk 0:02:59.6]} 4... Nf6 {[%clk 0:02:59.2]} 5. Nc3 {[%clk 0:02:59.3]}
5... d6 {[%clk 0:02:59]} 6. Be3 {[%clk 0:02:55.8]} 6... Be7 {[%clk 0:02:58.4]}
7. f4 {[%clk 0:02:55.8]} 7... O-O {[%clk 0:02:57]} 8. Bd3 {[%clk 0:02:54.9]}
8... Nc6 {[%clk 0:02:48.2]} 9. Nb3 {[%clk 0:02:54.8]} 9... e5 {[%clk 0:02:38.4]}
10. h3 {[%clk 0:02:48]} 10... exf4 {[%clk 0:02:12.6]} 11. Bxf4 {[%clk
0:02:47.9]} 11... Ne8 {[%clk 0:02:08.7]} 12. Qd2 {[%clk 0:02:36.2]} 12... Bh4+
{[%clk 0:01:57.5]} 13. g3 {[%clk 0:02:35.1]} 13... Bf6 {[%clk 0:01:51.2]} 14.
O-O-O {[%clk 0:02:33.4]} 14... Be5 {[%clk 0:01:51.3]} 15. Kb1 {[%clk 0:02:26.1]}
15... Be6 {[%clk 0:01:33.4]} 16. h4 {[%clk 0:02:18.2]} 16... a5 {[%clk
0:01:32.7]} 17. Nd5 {[%clk 0:02:13.5]} 17... a4 {[%clk 0:01:27]} 18. Bxe5 {[%clk
0:02:09.3]} 18... Nxe5 {[%clk 0:01:15.3]} 19. Nd4 {[%clk 0:02:04.9]} 19... a3
{[%clk 0:01:11.8]} 20. b3 {[%clk 0:02:04.2]} 20... Nc7 {[%clk 0:01:10.9]} 21.
Ne3 {[%clk 0:01:49.9]} 21... Na6 {[%clk 0:01:04.8]} 22. Nxe6 {[%clk 0:01:37.6]}
22... fxe6 {[%clk 0:01:04]} 23. Nc4 {[%clk 0:01:37.6]} 23... Nc5 {[%clk
0:00:56.7]} 24. Qc3 {[%clk 0:01:27.1]} 24... Nexd3 {[%clk 0:00:40.5]} 25. cxd3
{[%clk 0:01:21.3]} 25... Rf2 {[%clk 0:00:39.5]} 26. Rhf1 {[%clk 0:01:08.7]}
26... Rg2 {[%clk 0:00:24]} 27. Rg1 {[%clk 0:01:01]} 27... Rxg1 {[%clk
0:00:22.1]} 28. Rxg1 {[%clk 0:01:00.6]} 28... b5 {[%clk 0:00:20.3]} 29. Nd2
{[%clk 0:00:53.8]} 29... Qf8 {[%clk 0:00:18.8]} 30. Rf1 {[%clk 0:00:52.9]} 30...
Qe7 {[%clk 0:00:18.6]} 31. d4 {[%clk 0:00:49.8]} 31... Na6 {[%clk 0:00:18.4]}
32. e5 {[%clk 0:00:39.5]} 32... h6 {[%clk 0:00:17.8]} 33. Ne4 {[%clk 0:00:38.6]}
33... Rf8 {[%clk 0:00:17.2]} 34. Rxf8+ {[%clk 0:00:31.8]} 34... Qxf8 {[%clk
0:00:17.2]} 35. Nxd6 {[%clk 0:00:29.5]} 35... Qf1+ {[%clk 0:00:16.9]} 36. Qc1
{[%clk 0:00:29.5]} 36... Qd3+ {[%clk 0:00:16.7]} 37. Qc2 {[%clk 0:00:26.2]}
37... Qxd4 {[%clk 0:00:17.1]} 38. h5 {[%clk 0:00:21.1]} 38... Nb4 {[%clk
0:00:16.8]} 39. Qc1 {[%clk 0:00:12.5]} 39... Qd3+ {[%clk 0:00:16.2]} 40. Ka1
{[%clk 0:00:12.3]} 40... Nc2+ {[%clk 0:00:14.9]} 41. Kb1 {[%clk 0:00:11.9]}
41... Nd4+ {[%clk 0:00:14.7]} 42. Ka1 {[%clk 0:00:10.4]} 42... Nc2+ {[%clk
0:00:14.5]} 43. Kb1 {[%clk 0:00:10.5]} 43... Ne3+ {[%clk 0:00:14]} 44. Ka1
{[%clk 0:00:10.4]} 44... Qd4+ {[%clk 0:00:13.9]} 45. Kb1 {[%clk 0:00:09.3]}
45... Qxe5 {[%clk 0:00:10.6]} 46. Qc8+ {[%clk 0:00:09]} 46... Kh7 {[%clk
0:00:10.2]} 47. Qh8+ {[%clk 0:00:08.6]} 47... Kxh8 {[%clk 0:00:09.5]} 48. Nf7+
{[%clk 0:00:09.5]} 48... Kg8 {[%clk 0:00:08.9]} 49. Nxe5 {[%clk 0:00:10.4]}
49... Nf5 {[%clk 0:00:08.1]} 50. g4 {[%clk 0:00:10]} 50... Nd4 {[%clk
0:00:07.9]} 51. b4 {[%clk 0:00:09]} 51... Kf8 {[%clk 0:00:07.9]} 52. Nd7+ {[%clk
0:00:06.5]} 52... Ke7 {[%clk 0:00:07.9]} 53. Nc5 {[%clk 0:00:06.7]} 53... Ne2
{[%clk 0:00:06.9]} 54. Kc2 {[%clk 0:00:05.1]} 54... Ng3 {[%clk 0:00:03.9]} 55.
Kb3 {[%clk 0:00:04.7]} 55... Nf1 {[%clk 0:00:04]} 56. Kxa3 {[%clk 0:00:04.7]}
56... Ne3 {[%clk 0:00:04.3]} 57. g5 {[%clk 0:00:03.7]} 57... hxg5 {[%clk
0:00:04.1]} 58. Ne4 {[%clk 0:00:03.6]} 58... g4 {[%clk 0:00:04.4]} 59. Kb3
{[%clk 0:00:03.8]} 59... Nf5 {[%clk 0:00:04.6]} 60. Kc3 {[%clk 0:00:02.4]} 60...
g3 {[%clk 0:00:04.9]} 61. Nd2 {[%clk 0:00:01]} 61... g2 {[%clk 0:00:05.1]} 62.
Nf3 {[%clk 0:00:01.7]} 62... Nh4 {[%clk 0:00:05]} 63. Ng1 {[%clk 0:00:02.1]}
63... Kd6 {[%clk 0:00:04.9]} 64. Kd3 {[%clk 0:00:02.5]} 64... Kd5 {[%clk
0:00:04.7]} 65. Ke3 {[%clk 0:00:02.9]} 65... e5 {[%clk 0:00:05.1]} 66. Kf2
{[%clk 0:00:02.9]} 66... e4 {[%clk 0:00:03.5]} 67. Kg3 {[%clk 0:00:03.2]} 67...
Nf3 {[%clk 0:00:02.8]} 68. Kxg2 {[%clk 0:00:03.4]} 68... Nxg1 {[%clk 0:00:02.9]}
69. Kxg1 {[%clk 0:00:03.9]} 69... Kd4 {[%clk 0:00:03.3]} 70. Kf2 {[%clk
0:00:04.1]} 70... Kd3 {[%clk 0:00:02.5]} 71. Ke1 {[%clk 0:00:04.2]} 71... Kc3
{[%clk 0:00:02.9]} 72. Ke2 {[%clk 0:00:03.4]} 72... Kxb4 {[%clk 0:00:02.3]} 73.
Ke3 {[%clk 0:00:03.3]} 73... Ka3 {[%clk 0:00:02.7]} 74. Kxe4 {[%clk 0:00:03.8]}
74... Kxa2 {[%clk 0:00:03.2]} 75. Kf5 {[%clk 0:00:04.7]} 75... b4 {[%clk
0:00:03.6]} 76. Kg6 {[%clk 0:00:05.6]} 76... b3 {[%clk 0:00:04.2]} 77. Kxg7
{[%clk 0:00:06.5]} 77... b2 {[%clk 0:00:04.8]} 78. h6 {[%clk 0:00:07.4]} 78...
b1=Q {[%clk 0:00:05]} 79. h7 {[%clk 0:00:07.6]} 79... Qb7+ {[%clk 0:00:04.6]}
80. Kh8 {[%clk 0:00:07.8]} 80... Qb2+ {[%clk 0:00:04.7]} 81. Kg8 {[%clk
0:00:07.7]} 81... Qg2+ {[%clk 0:00:05.4]} 82. Kh8 {[%clk 0:00:07.9]} 82... Qh3
{[%clk 0:00:04.3]} 83. Kg8 {[%clk 0:00:08.2]} 83... Qg4+ {[%clk 0:00:05]} 84.
Kh8 {[%clk 0:00:08.6]} 84... Qh5 {[%clk 0:00:05.7]} 85. Kg8 {[%clk 0:00:09]}
85... Qg5+ {[%clk 0:00:06.2]} 86. Kh8 {[%clk 0:00:09.3]} 86... Qh6 {[%clk
0:00:06.3]} 87. Kg8 {[%clk 0:00:09.7]} 87... Qg6+ {[%clk 0:00:04.9]} 88. Kh8
{[%clk 0:00:09.9]} 88... Qe8+ {[%clk 0:00:05.2]} 89. Kg7 {[%clk 0:00:10]}
1/2-1/2